bitfinex/quotes_ETHUSD_20250210
["timestamp","ask_amount","ask_price","bid_price","bid_amount"]
[1739195510931,0.55,2677.5,2677.2,3.73524]
[1739195511327,0.55,2677.5,2676.9,3.73556]
[1739195511530,3.73517,2677.3,2676.8,3.73577]
[1739195511741,3.73539,2677.1,2676.4,3.73636]
[1739195512065,0.8074,2677.0,2676.6,3.73597]
[1739195512666,3.73597,2676.7,2676.0,3.73682]
[1739195512868,0.8074,2676.5,2676.0,3.73682]
[1739195513038,3.73681,2676.1,2675.8,1.09904532]
[1739195513362,3.73653,2676.3,2675.7,3.73732]
[1739195513744,3.73666,2676.2,2675.7,3.73732]
[1739195514473,0.8074,2675.9,2675.3,3.73779]
[1739195514779,4.54446,2675.9,2675.1,3.73811]
[1739195515080,3.73639,2676.4,2674.4,3.30847638]
[1739195515081,0.8074,2675.7,2674.4,3.30847638]
[1739195515382,3.73751,2675.6,2674.9,3.73831]
[1739195515675,3.73812,2675.2,2674.5,3.7389]
[1739195515840,0.55,2675.1,2674.5,3.7389]
[1739195516041,4.28818,2675.1,2674.5,4.08119966]
[1739195516239,4.54575,2675.0,2674.5,0.34229966]
[1739195516474,0.8074,2675.0,2674.5,0.34229966]
[1739195516771,0.55,2674.9,2674.5,0.34229966]
[1739195517144,3.73877,2674.7,2674.5,0.34229966]
[1739195517588,4.53726,2674.4,2673.9,1.09982627]
[1739195517875,3.7397,2674.1,2672.9,4.52736]
[1739195518077,0.798,2674.4,2673.8,3.73989]
[1739195518279,0.798,2674.4,2674.2,3.73931]
[1739195518638,0.798,2674.4,2673.6,3.7402]
[1739195518839,3.73967,2674.1,2673.5,3.7403]
[1739195519043,3.73967,2674.1,2673.2,4.5269]
[1739195519252,0.798,2673.8,2673.2,3.7407]
[1739195519480,0.798,2673.8,2673.4,3.74042]
[1739195519644,0.798,2673.8,2673.3,3.74069]
[1739195519858,0.798,2673.8,2673.2,3.7408]
[1739195520180,0.798,2673.8,2673.4,3.74049]
[1739195520752,0.798,2673.8,2673.2,3.7408]
[1739195520981,0.798,2673.8,2673.3,3.74063]
[1739195521188,0.798,2674.1,2673.6,3.74016]
[1739195521386,0.798,2674.1,2673.7,3.74002]
[1739195521651,0.798,2674.5,2674.2,3.73929]
[1739195521867,0.798,2674.5,2674.0,7.4793]
[1739195522105,0.798,2674.5,2674.2,3.73935]
[1739195522255,0.798,2674.5,2673.8,3.73988]
[1739195522453,3.73926,2674.4,2673.8,3.73988]
[1739195522751,0.798,2674.5,2673.9,3.73984]
[1739195522989,0.798,2674.5,2674.0,3.7397]
[1739195523297,0.798,2674.5,2674.2,3.73942]
[1739195523449,0.798,2674.5,2673.7,3.74008]
[1739195523450,4.53704,2674.5,2673.8,3.7399]
[1739195523667,0.798,2674.5,2673.3,3.30217638]
[1739195523873,0.798,2674.5,2674.0,3.73958]
[1739195524115,0.798,2674.5,2674.1,3.73944]
[1739195524272,0.798,2674.9,2674.4,3.73915]
[1739195524467,4.53648,2674.9,2674.4,3.73915]
[1739195524971,3.7387,2674.8,2674.2,3.73941]
[1739195525422,0.798,2674.9,2674.0,3.73971]
[1739195525711,0.798,2674.9,2674.8,3.73859]
[1739195525913,0.798,2675.2,2674.8,3.73852]
[1739195526119,3.73861,2674.8,2674.2,3.73941]
[1739195526294,3.73834,2675.0,2674.4,3.73914]
[1739195526479,0.798,2675.2,2674.6,3.73887]
[1739195526480,4.5361,2675.2,2674.6,3.73887]
[1739195526807,0.798,2675.2,2674.9,3.73845]
[1739195527305,0.798,2675.2,2674.5,0.7862]
[1739195527511,3.73851,2674.9,2674.4,3.73901]
[1739195527679,3.73834,2675.0,2674.5,3.73899]
[1739195527880,4.53611,2675.2,2674.6,3.73885]
[1739195528503,0.798,2675.2,2674.8,3.73858]
[1739195528907,0.798,2675.2,2674.9,0.06542886]
[1739195530009,0.798,2675.2,2674.9,3.73834]
[1739195530170,0.798,2676.2,2675.0,0.06535594]
[1739195530370,0.798,2676.2,2675.6,3.73738]
[1739195530607,3.7371,2675.9,2675.3,3.73781]
[1739195530769,3.73684,2676.1,2674.8,3.73855]
[1739195530770,0.55,2676.0,2674.8,3.73855]
[1739195530971,0.45,2676.0,2675.5,7.47505]
[1739195531206,0.798,2675.9,2675.1,3.73809]
[1739195531408,3.73745,2675.7,2675.0,3.73821]
[1739195531575,3.7376,2675.6,2675.0,3.73821]
[1739195531908,2.51597638,2676.3,2674.9,3.73844]
[1739195531909,0.8231,2675.3,2675.1,0.06528302]
[1739195532209,0.8231,2675.3,2675.1,3.73817]
[1739195532404,0.8231,2675.3,2675.2,0.06521012]
[1739195532773,0.8231,2675.3,2675.0,3.73829]
[1739195532970,0.8231,2675.3,2675.2,0.06521012]
[1739195533172,0.8231,2675.6,2675.2,3.80315012]
[1739195533412,1.3731,2675.6,2675.5,3.73761]
[1739195533614,3.73789,2675.3,2675.2,0.06521012]
[1739195533911,3.73789,2675.3,2674.4,2.51597638]
[1739195533912,3.73811,2675.2,2674.7,3.73862]
[1739195534284,3.73811,2675.2,2674.6,3.73884]
[1739195534485,0.8231,2675.1,2674.6,3.73884]
[1739195534687,3.73902,2674.5,2673.9,0.8193]
[1739195534887,3.73895,2674.6,2674.0,3.73961]
[1739195535087,0.8231,2674.5,2673.9,4.55906]
[1739195535291,0.55,2674.4,2673.9,0.8193]
[1739195535603,0.55,2674.4,2674.0,3.73965]
[1739195536314,4.28924,2674.4,2673.9,0.8193]
[1739195536519,4.28924,2674.4,2673.5,2.51597638]
[1739195536520,3.73948,2674.2,2673.5,3.74029]
[1739195536812,3.73967,2674.1,2673.4,4.55984]
[1739195537020,0.55,2674.2,2673.6,3.74014]
[1739195537218,7.47956,2674.0,2673.4,3.74047]
[1739195537416,0.8231,2673.9,2673.2,3.74078]
[1739195537597,3.74,2673.8,2673.2,3.74073]
[1739195537790,3.74,2673.8,2672.2,0.315]
[1739195537791,3.74037,2673.6,2673.0,3.741]
[1739195538090,3.74028,2673.6,2673.0,3.741]
[1739195538297,4.29007,2673.8,2673.0,3.741]
[1739195538504,8.03019,2673.8,2673.2,3.74083]
[1739195538741,0.55,2673.6,2673.1,3.74092]
[1739195539453,0.55,2673.7,2673.2,3.74081]
[1739195539657,4.29013,2673.7,2673.2,3.74081]
[1739195539954,4.29015,2673.7,2673.2,3.74081]
[1739195540329,4.29015,2673.7,2673.0,3.74099]
[1739195540330,3.74015,2673.7,2673.0,3.74099]
[1739195540530,3.74028,2673.6,2673.0,7.48199]
[1739195540917,3.74028,2673.6,2673.0,3.7411]
[1739195541445,4.29016,2673.7,2673.1,3.74092]
[1739195541641,3.74002,2673.8,2672.8,0.8193]
[1739195541642,3.74002,2673.8,2673.2,3.7408]
[1739195541947,4.56299,2673.9,2673.3,3.74066]
[1739195542134,0.8231,2673.9,2673.4,3.7405]
[1739195542338,0.8231,2673.9,2673.4,3.74047]
[1739195542537,0.8231,2673.9,2673.5,3.74033]
[1739195542932,0.8231,2673.9,2673.4,3.74047]
[1739195543256,0.8231,2673.9,2672.9,2.51597638]
[1739195543257,0.8231,2674.7,2674.2,3.73943]
[1739195543458,0.8231,2674.7,2674.3,3.73929]
[1739195543670,0.8231,2674.7,2674.3,0.06702083]
[1739195543959,3.73911,2674.5,2674.3,0.06702083]
[1739195544157,4.28915,2674.4,2673.7,3.7401]
[1739195544458,3.73943,2674.2,2673.5,3.74029]
[1739195544623,0.55,2674.1,2673.3,3.74062]
[1739195544823,0.55,2673.8,2673.2,3.74075]
[1739195545161,4.29001,2673.8,2673.2,3.74075]
[1739195545556,4.29001,2673.8,2673.1,3.74085]
[1739195545557,0.55,2673.8,2673.3,3.74061]
[1739195545757,4.29001,2673.8,2673.2,3.74075]
[1739195545976,0.55,2673.8,2673.3,3.74062]
[1739195546173,0.55,2673.8,2672.8,3.33527638]
[1739195546404,0.55,2673.8,2672.8,0.8193]
[1739195546605,4.29001,2673.8,2673.2,7.48145]
[1739195546905,0.8231,2673.9,2673.4,3.74053]
[1739195547408,0.8231,2673.9,2673.5,3.74033]
[1739195547703,0.8231,2673.9,2673.1,0.0374054]
[1739195547909,0.8231,2673.9,2672.8,3.33527638]
[1739195548205,4.56295,2673.9,2673.4,3.74051]
[1739195548497,0.55,2673.8,2673.4,3.74051]
[1739195548853,0.55,2673.8,2673.3,3.74069]
[1739195549281,4.29008,2673.8,2673.2,3.74078]
[1739195549687,4.29008,2673.8,2673.2,7.48152]
[1739195550002,4.29001,2673.8,2673.2,3.74074]
[1739195550187,0.55,2673.7,2673.1,3.74095]
[1739195550356,0.55,2673.7,2673.0,3.74109]
[1739195550559,0.55,2673.7,2672.8,0.8193]
[1739195550758,0.55,2673.7,2673.3,3.74069]
[1739195550995,0.55,2673.7,2673.3,7.48138]
[1739195551152,0.55,2673.7,2673.3,3.74069]
[1739195551601,4.29021,2673.7,2673.1,7.48176]
[1739195551895,3.74027,2673.6,2673.1,3.74087]
[1739195552089,0.55,2673.7,2673.2,3.74076]
[1739195552255,4.29015,2673.7,2673.1,3.74087]
[1739195552463,0.55,2673.5,2673.1,3.74087]
[1739195552685,0.55,2673.5,2673.2,3.74083]
[1739195553472,4.29029,2673.6,2673.1,3.74087]
[1739195553790,0.8231,2673.5,2673.1,3.74087]
[1739195554115,0.8231,2673.5,2673.2,3.74081]
[1739195555081,0.55,2673.4,2673.0,3.7411]
[1739195555288,4.29055,2673.4,2672.5,0.8193]
[1739195555523,4.29055,2673.4,2672.7,3.74148]
[1739195555837,4.29055,2673.4,2672.0,1.809074]
[1739195555838,0.55,2673.1,2672.0,1.809074]
[1739195556119,3.74125,2672.9,2672.4,3.74194]
[1739195556282,0.55,2672.9,2672.5,3.74178]
[1739195556716,0.55,2673.0,2672.6,3.74164]
[1739195556885,3.74078,2673.3,2672.6,4.5609]
[1739195557081,3.74078,2673.3,2672.1,3.99271]
[1739195557082,0.8231,2674.0,2673.1,3.74087]
[1739195557286,3.73985,2673.9,2673.0,2.51597638]
[1739195557485,3.74069,2673.3,2672.8,3.74136]
[1739195557719,3.74069,2673.3,2672.8,3.74133]
[1739195558025,3.74104,2673.1,2672.6,3.74154]
[1739195558221,3.74118,2673.0,2672.4,7.07713638]
[1739195558426,3.74118,2673.0,2672.7,0.06812125]
[1739195558723,4.29082,2673.3,2672.8,0.06804821]
[1739195558923,3.74125,2672.9,2672.2,3.74219]
[1739195559123,4.56457,2672.8,2672.2,3.74219]
[1739195559291,4.56457,2672.8,2672.3,0.06841347]
[1739195559292,0.8231,2672.8,2672.3,0.06841347]
[1739195559489,3.74153,2672.7,2672.2,3.74219]
[1739195559689,3.74153,2672.7,2672.4,0.06902186]
[1739195560025,3.74153,2672.7,2672.5,0.0689488]
[1739195560191,3.74153,2672.7,2672.2,3.74219]
[1739195560392,3.74153,2672.7,2672.3,0.06909492]
[1739195560616,3.74158,2672.7,2672.2,3.74221]
[1739195560831,3.74158,2672.7,2672.3,0.06909492]
[1739195561131,3.74223,2672.2,2672.1,0.2504]
[1739195561369,3.7421,2672.3,2672.1,0.2504]
[1739195562071,3.74223,2672.2,2672.1,0.2504]
[1739195562241,0.55,2672.4,2672.1,0.2504]
[1739195562767,3.74158,2672.7,2672.2,3.74222]
[1739195563069,0.55,2672.6,2672.2,3.74222]
[1739195563265,0.55,2672.6,2672.1,0.2504]
[1739195563469,3.74205,2672.4,2672.1,0.2504]
[1739195563965,4.29178,2672.6,2672.1,0.2504]
[1739195563966,4.29174,2672.6,2672.1,0.2504]
[1739195564385,4.29174,2672.6,2672.1,3.99269]
[1739195564593,0.55,2672.7,2672.2,3.74218]
[1739195564734,4.52889,2673.8,2672.4,3.7419]
[1739195564937,3.74119,2673.0,2672.4,3.74189]
[1739195565268,3.74098,2673.1,2672.4,3.74185]
[1739195565472,3.74098,2673.1,2672.6,3.74156]
[1739195565673,3.74098,2673.1,2672.5,3.74169]
[1739195565872,0.55,2673.0,2672.6,3.74163]
[1739195566188,0.55,2673.0,2672.5,3.74171]
[1739195566694,3.74125,2672.9,2672.4,7.48373]
[1739195566860,3.74125,2672.9,2672.4,3.74186]
[1739195567065,4.29099,2673.1,2672.4,3.74186]
[1739195567243,0.55,2673.1,2672.4,3.74187]
[1739195567599,3.74114,2673.0,2672.4,3.74187]
[1739195567786,0.55,2672.9,2672.4,7.48372]
[1739195567993,4.29129,2672.9,2672.4,3.74185]
[1739195568147,3.74156,2672.7,2672.2,3.69215]
[1739195568341,3.74156,2672.7,2672.2,3.74223]
[1739195568586,3.74104,2673.1,2672.4,3.74191]
[1739195568792,3.74104,2673.1,2672.6,3.7416]
[1739195569039,0.55,2673.0,2672.6,3.7416]
[1739195569346,4.29115,2673.0,2672.5,3.74176]
[1739195569644,0.55,2673.0,2672.1,3.55617638]
[1739195569800,3.74111,2673.0,2672.3,3.74207]
[1739195570005,3.74133,2672.9,2672.1,3.55617638]
[1739195570307,3.74121,2673.0,2672.2,3.74223]
[1739195570486,3.74121,2673.0,2672.5,3.7417]
[1739195570834,4.29097,2673.1,2672.6,3.7416]
[1739195571288,4.29097,2673.1,2672.5,3.74174]
[1739195571289,3.74111,2673.0,2672.5,3.74174]
[1739195571488,3.74111,2673.0,2672.5,3.74172]
[1739195571985,3.74111,2673.0,2672.5,7.48344]
[1739195572190,0.55,2673.1,2672.5,3.74172]
[1739195572191,3.74105,2673.1,2672.5,3.74172]
[1739195572416,3.74105,2673.1,2672.6,3.74162]
[1739195572635,0.7889,2673.2,2672.8,3.74131]
[1739195572813,3.74107,2673.1,2672.4,4.57296]
[1739195573118,3.74125,2672.9,2672.4,3.74186]
[1739195573290,7.48261,2672.9,2672.5,0.06691464]
[1739195573491,3.74142,2672.8,2672.5,0.06691464]
[1739195573735,3.74142,2672.8,2672.3,3.74198]
[1739195573953,5.07973,2673.2,2672.6,3.80848159]
[1739195574255,0.7889,2673.2,2672.7,0.06676854]
[1739195574547,0.7889,2673.2,2672.2,3.74209]
[1739195574548,3.74134,2672.9,2672.2,3.74209]
[1739195574757,3.74158,2672.7,2672.2,7.48423]
[1739195575046,3.74108,2673.1,2672.1,1.0815]
[1739195575250,3.74104,2673.1,2672.6,3.7416]
[1739195575546,3.74118,2673.0,2672.5,3.74174]
[1739195575751,0.55,2673.1,2672.6,3.74157]
[1739195575948,0.55,2673.1,2672.7,3.74148]
[1739195576159,0.7889,2673.2,2672.6,2.16487411]
[1739195576360,4.56179,2673.5,2673.0,3.74103]
[1739195577252,4.56179,2673.5,2673.1,3.74088]
[1739195577253,0.8213,2673.5,2673.1,3.74088]
[1739195577452,0.8213,2673.8,2672.9,2.16487411]
[1739195577619,0.55,2673.7,2673.3,3.74068]
[1739195578020,0.55,2673.7,2672.9,3.74115]
[1739195578226,3.74038,2673.6,2673.0,3.7411]
[1739195578628,3.74038,2673.6,2673.0,3.74107]
[1739195578938,3.74044,2673.5,2673.0,3.74108]
[1739195579143,7.48077,2673.6,2673.0,3.74108]
[1739195579340,3.74038,2673.6,2673.0,3.74108]
[1739195579642,3.74034,2673.6,2673.0,3.74108]
[1739195580031,3.74034,2673.6,2673.1,3.7409]
[1739195580236,3.74034,2673.6,2673.0,3.74102]
[1739195580422,3.74034,2673.6,2673.0,7.48203]
[1739195580622,3.74034,2673.6,2673.0,3.74101]
[1739195580911,7.48071,2673.6,2673.0,3.74101]
[1739195581440,3.74034,2673.6,2673.0,3.74101]
[1739195581642,3.74043,2673.5,2672.7,3.3487209]
[1739195582026,3.74056,2673.4,2672.8,3.74139]
[1739195582344,3.74056,2673.4,2672.9,3.74119]
[1739195582649,3.74041,2673.5,2673.0,3.74103]
[1739195582809,3.74041,2673.5,2672.9,3.74117]
[1739195583005,3.74041,2673.5,2672.7,3.3487209]
[1739195583344,3.74041,2673.5,2673.0,3.74101]
[1739195583546,3.74041,2673.5,2672.9,3.74125]
[1739195583849,0.8213,2673.8,2672.9,3.74125]
[1739195584084,4.5613,2673.8,2673.3,3.74062]
[1739195584283,0.55,2673.7,2672.8,3.74139]
[1739195584580,0.55,2673.7,2673.5,3.74029]
[1739195584798,0.55,2673.7,2673.6,3.74027]
[1739195584946,0.7594,2674.1,2673.3,0.7693]
[1739195585145,0.7594,2674.1,2673.8,3.73997]
[1739195585394,0.7594,2674.1,2674.0,3.73971]
[1739195585691,0.7594,2674.1,2673.3,0.7693]
[1739195585874,0.55,2673.8,2673.3,3.74062]
[1739195586179,3.7404,2673.6,2673.1,3.74095]
[1739195586343,0.7594,2673.5,2673.0,3.74105]
[1739195586543,0.7594,2673.5,2673.1,3.74095]
[1739195586747,3.74077,2673.3,2672.8,3.74138]
[1739195587149,0.55,2673.2,2672.8,3.74138]
[1739195587359,4.29094,2673.2,2672.6,7.85804]
[1739195587543,0.55,2673.0,2672.6,3.74157]
[1739195587743,0.7594,2672.9,2672.6,3.74157]
[1739195587984,0.7594,2672.9,2672.4,7.48376]
[1739195588151,0.7594,2672.9,2672.4,3.74186]
[1739195588352,0.7594,2672.9,2672.5,3.80828303]
[1739195588546,0.55,2672.8,2672.5,0.06654303]
[1739195588980,0.55,2672.8,2672.4,3.74193]
[1739195589290,3.74162,2672.7,2672.5,0.06667332]
[1739195589594,0.55,2672.6,2672.5,0.06667332]
[1739195589782,4.29167,2672.6,2672.1,0.2504]
[1739195589976,4.29167,2672.6,2672.5,0.06684226]
[1739195590194,3.74153,2672.7,2672.1,0.2504]
[1739195590490,3.74202,2672.4,2672.1,0.2504]
[1739195590653,3.74202,2672.4,2672.2,0.06722077]
[1739195590992,5.05149,2672.3,2672.2,0.06722077]
[1739195591724,1.3094,2672.3,2672.1,0.2504]
[1739195591942,3.74223,2672.2,2672.1,0.2504]
[1739195592591,4.29223,2672.2,2672.1,0.2504]
[1739195593195,7.29223,2672.2,2672.1,0.2504]
[1739195593396,8.11453,2672.2,2672.1,0.2504]
[1739195594822,1.3723,2672.2,2672.1,0.2504]
[1739195594988,3.74111,2673.0,2672.1,0.2504]
[1739195595187,0.76122623,2672.6,2672.1,0.2504]
[1739195595416,0.8223,2672.5,2672.1,0.2504]
[1739195595615,3.7421,2672.3,2672.1,0.2504]
[1739195595831,0.55,2672.2,2672.1,0.2504]
[1739195596036,4.56422,2672.5,2672.1,0.2504]
[1739195596236,8.30612,2672.5,2672.1,0.2504]
[1739195596531,4.29223,2672.2,2672.1,0.2504]
[1739195597089,0.55,2672.3,2672.1,0.2504]
[1739195597426,0.8223,2672.5,2672.1,3.99269]
[1739195597724,0.8223,2672.9,2672.4,3.74195]
[1739195597933,0.55,2672.6,2672.3,3.74197]
[1739195598419,0.55,2672.6,2672.1,0.2504]
[1739195598608,0.55,2672.6,2672.3,3.74206]
[1739195598816,3.8223,2672.9,2672.3,3.74206]
[1739195599077,0.8223,2673.7,2673.3,3.74065]
[1739195599241,1.57999273,2673.7,2673.5,3.74028]
[1739195599443,1.57999273,2673.7,2673.3,3.74062]
[1739195599673,1.57999273,2673.7,2673.1,3.74086]
[1739195599879,5.32022273,2673.7,2673.2,3.74082]
[1739195600180,0.55,2673.6,2673.1,7.48173]
[1739195600376,0.8223,2673.7,2673.1,3.74086]
[1739195600678,0.8223,2673.7,2673.3,3.74065]
[1739195600876,0.8223,2673.7,2673.6,3.74027]
[1739195601043,0.8223,2673.7,2673.4,3.74055]
[1739195601044,0.8223,2673.7,2673.5,3.74041]
[1739195601686,0.8223,2674.0,2673.6,3.74027]
[1739195601977,0.8223,2674.0,2673.6,7.48031]
[1739195602179,0.8223,2674.0,2673.6,3.74015]
[1739195602875,0.55,2673.9,2673.6,3.74015]
[1739195603388,0.55,2673.9,2673.7,0.06615937]
[1739195603546,0.8223,2674.3,2673.7,3.80628937]
[1739195603743,0.8223,2674.3,2673.9,3.73985]
[1739195604179,0.8223,2674.3,2674.0,0.06594043]
[1739195604389,4.56167,2674.3,2674.0,0.06594043]
[1739195604560,0.55,2673.8,2673.4,0.7862]
[1739195604884,0.55,2673.6,2673.1,4.52708]
[1739195605181,3.73946,2674.2,2673.6,3.74019]
[1739195605563,4.56173,2674.3,2673.8,3.73998]
[1739195606182,4.56173,2674.3,2673.7,0.7862]
[1739195606183,0.8223,2674.3,2673.9,3.73977]
[1739195606387,0.8223,2674.3,2673.8,3.7399]
[1739195606750,3.73834,2675.0,2673.8,3.7399]
[1739195606751,0.8223,2675.2,2673.9,2.5176209]
[1739195606963,3.7384,2675.0,2673.9,2.5176209]
[1739195607163,4.5604,2675.2,2674.6,3.73879]
[1739195607387,4.5604,2675.2,2674.4,3.73908]
[1739195607590,3.73817,2675.1,2674.4,3.73914]
[1739195607778,3.73993,2673.9,2673.7,0.7862]
[1739195608154,7.47988,2673.9,2673.7,0.7862]
[1739195608348,3.73993,2673.9,2673.4,0.7862]
[1739195608785,0.55,2674.0,2673.5,3.74041]
[1739195609173,4.29003,2673.8,2673.4,0.7862]
[1739195609493,4.29003,2673.8,2673.3,3.74065]
[1739195609695,4.28987,2673.9,2673.4,3.7405]
[1739195609905,4.28987,2673.9,2673.3,3.74065]
[1739195610054,4.28987,2673.9,2673.3,3.74059]
[1739195610260,4.28987,2673.9,2673.3,7.48118]
[1739195610596,4.28987,2673.9,2673.4,3.74053]
[1739195610766,0.55,2673.9,2673.5,3.74037]
[1739195611099,4.28733442,2673.9,2673.4,3.74053]
[1739195611295,0.54747442,2673.9,2673.5,3.7403]
[1739195611662,0.54747442,2673.9,2673.3,7.4812]
[1739195611863,4.28733442,2673.9,2673.3,7.4812]
[1739195612060,4.28733442,2673.9,2673.3,3.74058]
[1739195612293,3.73986,2673.9,2673.1,4.52703]
[1739195612598,3.74043,2673.5,2673.1,0.7862]
[1739195612777,3.74043,2673.5,2673.0,1.10019658]
[1739195612778,3.74056,2673.4,2673.0,1.10019658]
[1739195612973,0.8223,2674.0,2673.0,4.84128658]
[1739195612974,0.55,2673.6,2673.0,4.84128658]
[1739195613192,0.55,2673.6,2673.2,3.74079]
[1739195613601,3.739,2674.6,2673.8,3.73995]
[1739195613793,3.73958,2674.1,2673.6,3.74021]
[1739195613974,0.8223,2674.2,2673.6,3.74015]
[1739195614179,4.56181,2674.2,2673.6,3.74015]
[1739195614527,0.55,2674.1,2673.7,3.74004]
[1739195614684,0.8223,2674.2,2673.7,3.74004]
[1739195615014,3.73929,2674.3,2673.8,3.73998]
[1739195615391,3.73929,2674.3,2673.7,3.74004]
[1739195615720,3.73929,2674.3,2673.6,3.74017]
[1739195615721,0.8223,2674.8,2674.3,3.73917]
[1739195616068,3.73855,2674.9,2674.3,3.73917]
[1739195616274,3.7389,2674.6,2674.2,0.7862]
[1739195616469,3.73865,2674.8,2674.2,4.52555]
[1739195616671,3.7384,2675.0,2674.3,3.73919]
[1739195616672,3.73848,2674.9,2674.3,3.73919]
[1739195616866,3.7384,2675.0,2674.5,3.73898]
[1739195617375,3.7384,2675.0,2674.4,3.73911]
[1739195617575,3.73845,2674.9,2674.4,3.73913]
[1739195617820,4.28853,2674.9,2674.3,3.73925]
[1739195618110,4.28853,2674.9,2674.4,0.06431188]
[1739195618290,3.73867,2674.8,2674.4,0.06431188]
[1739195618726,0.55,2674.9,2674.4,3.80333188]
[1739195619696,4.28846,2674.9,2674.4,3.80333188]
[1739195620132,3.7386,2674.8,2674.4,0.06431188]
[1739195620427,3.73901,2674.5,2674.4,0.06431188]
[1739195620576,0.55,2674.6,2674.4,0.06431188]
[1739195620780,0.55,2674.6,2674.1,3.73957]
[1739195621123,0.55,2674.7,2674.5,0.06423893]
[1739195621438,3.73831,2675.0,2673.9,4.52597]
[1739195621578,0.55,2674.4,2673.9,4.52597]
[1739195621783,4.28922,2674.4,2673.9,4.52597]
[1739195621983,0.55,2674.4,2674.2,3.73943]
[1739195622220,3.73883,2674.7,2674.2,3.73943]
[1739195622405,3.73883,2674.7,2673.9,2.9485556]
[1739195622605,0.55,2674.6,2674.2,3.73942]
[1739195622806,0.55,2674.6,2674.1,3.73955]
[1739195623010,0.55,2674.6,2674.3,3.73922]
[1739195623407,0.55,2674.6,2674.2,3.73943]
[1739195623578,3.73901,2674.5,2674.0,3.73969]
[1739195623779,0.55,2674.4,2674.0,3.73964]
[1739195624081,0.55,2674.2,2673.8,3.7399]
[1739195624281,3.73968,2674.1,2673.6,6.7264356]
[1739195624477,3.73962,2674.1,2673.6,8.30425]
[1739195624682,0.55,2674.2,2673.6,4.56407]
[1739195624926,0.55,2674.2,2673.6,4.56409]
[1739195625092,3.73964,2674.1,2673.6,4.56409]
[1739195625298,4.2895,2674.2,2673.6,8.30424]
[1739195625504,4.2895,2674.2,2673.7,3.74013]
[1739195626007,0.55,2674.0,2673.5,3.74033]
[1739195626599,0.55,2674.0,2673.4,3.74048]
[1739195626828,0.55,2674.0,2673.6,3.7402]
[1739195627429,3.73986,2673.9,2673.4,7.48094]
[1739195627630,0.55,2674.0,2673.4,3.74046]
[1739195627824,4.28974,2674.0,2673.4,3.74046]
[1739195628031,4.28974,2674.0,2673.5,3.74034]
[1739195628395,0.55,2674.0,2673.4,3.74046]
[1739195628729,8.27349,2674.3,2673.7,3.74003]
[1739195629132,3.7392,2674.4,2673.8,0.8239]
[1739195629306,3.73932,2674.3,2673.8,0.8239]
[1739195629700,3.73932,2674.3,2673.8,4.56381]
[1739195630319,0.55,2674.4,2673.8,4.56381]
[1739195630634,0.55,2674.0,2673.2,0.8239]
[1739195630929,3.74026,2673.7,2673.2,0.8239]
[1739195631104,3.74051,2673.5,2673.1,1.10015542]
[1739195631311,3.74026,2673.7,2673.1,4.84103542]
[1739195631495,3.74026,2673.7,2673.1,1.10015542]
[1739195631696,0.55,2673.5,2673.1,1.10015542]
[1739195631896,3.74001,2673.8,2673.2,3.74083]
[1739195632126,3.74021,2673.7,2673.2,3.74083]
[1739195632429,4.53449,2674.1,2673.5,3.7403]
[1739195632599,0.7948,2674.1,2673.7,3.74004]
[1739195632797,3.73937,2674.3,2673.8,3.73994]
[1739195633000,3.73965,2674.1,2673.6,3.7402]
[1739195633512,3.73972,2674.0,2673.7,0.06512165]
[1739195633710,3.73972,2674.0,2673.5,4.56424]
[1739195634045,3.73972,2674.0,2673.8,0.06504867]
[1739195634206,3.73965,2674.1,2673.6,3.74023]
[1739195634397,3.73965,2674.1,2673.6,0.06519464]
[1739195634598,0.55,2674.3,2673.6,0.06519464]
[1739195634904,0.55,2674.0,2673.6,0.06519464]
[1739195635213,3.73999,2673.8,2673.6,0.06519464]
[1739195635534,3.73999,2673.8,2673.2,4.5647]
[1739195635834,4.28999,2673.8,2673.7,0.06512165]
[1739195636007,3.74043,2673.5,2673.1,1.10015542]
[1739195636196,3.74074,2673.3,2673.1,1.10015542]
[1739195636399,3.74074,2673.3,2673.2,0.06540949]
[1739195636617,5.08554,2673.3,2673.2,0.06540949]
[1739195636897,5.08554,2673.3,2673.1,1.10015542]
[1739195636898,0.55,2673.2,2673.1,1.10015542]
[1739195637098,4.29083,2673.2,2673.1,1.10015542]
[1739195637498,4.29083,2673.2,2673.1,1.16589843]
[1739195637707,4.29083,2673.2,2673.1,1.10015542]
[1739195638138,0.55,2672.9,2672.1,0.2504]
[1739195638337,0.797,2672.5,2672.1,0.2504]
[1739195638541,3.74144,2672.8,2672.2,3.74212]
[1739195638742,3.74171,2672.6,2672.2,0.06640042]
[1739195638895,3.74171,2672.6,2672.1,0.2504]
[1739195638896,3.74171,2672.6,2672.3,0.06632735]
[1739195639105,1.347,2672.9,2672.1,0.2504]
[1739195639432,3.74219,2672.3,2672.1,0.2504]
[1739195639635,3.74223,2672.2,2672.1,0.2504]
[1739195639818,0.55,2672.2,2672.1,0.2504]
[1739195640018,3.74199,2672.4,2672.1,0.2504]
[1739195640342,3.74223,2672.2,2672.1,0.2504]
[1739195640699,4.29223,2672.2,2672.1,0.2504]
[1739195642804,4.29237,2672.1,2672.0,4e-06]
[1739195643018,5.08937,2672.1,2672.0,4e-06]